bitfinex-derivatives/quotes_BTCF0:USTF0_20250620
["timestamp","ask_amount","ask_price","bid_price","bid_amount"]
[1750421807801,0.60592157,106010.0,106000.0,0.2355326]
[1750421808198,0.53046439,106010.0,106000.0,0.2355326]
[1750421810801,0.52127641,106010.0,106000.0,0.2355326]
[1750421810994,0.49900109,106010.0,106000.0,0.48029169]
[1750421814901,0.55542587,106010.0,106000.0,0.48029169]
[1750421815102,0.49900109,106010.0,106000.0,0.48029169]
[1750421815304,0.55542323,106010.0,106000.0,0.48029169]
[1750421819208,0.64049129,106010.0,106000.0,0.1886597]
[1750421819406,0.68765569,106010.0,106000.0,0.1886597]
[1750421821409,0.1886597,106000.0,105990.0,0.99862299]
[1750421821607,0.57003143,106000.0,105990.0,0.99862299]
[1750421821813,0.81479052,106000.0,105990.0,0.5494775]
[1750421822109,0.89030686,106000.0,105990.0,0.5494775]
[1750421824908,0.83387943,106000.0,105990.0,0.1886775]
[1750421825407,0.8380535,106000.0,105990.0,0.1886775]
[1750421827006,0.8380535,106000.0,105990.0,0.43343659]
[1750421827401,0.83387943,106000.0,105990.0,0.43343659]
[1750421827709,0.83387943,106000.0,105990.0,0.1886775]
[1750421830805,0.1886775,105990.0,105980.0,1.00005899]
[1750421831008,0.48992679,105990.0,105980.0,1.00005899]
[1750421831409,0.55392679,105990.0,105980.0,1.00005899]
[1750421832011,0.55392679,105990.0,105980.0,0.7572999]
[1750421832204,0.55392679,105990.0,105980.0,0.95488539]
[1750421832510,0.55392679,105990.0,105980.0,0.7101263]
[1750421832711,0.55392679,105990.0,105980.0,0.95488539]
[1750421833106,0.55392679,105990.0,105980.0,0.95688539]
[1750421834214,0.55392679,105990.0,105980.0,0.7121263]
[1750421834413,0.55392679,105990.0,105980.0,0.95688539]
[1750421834915,0.49743659,105990.0,105980.0,0.95688539]
[1750421835508,0.1886775,105990.0,105980.0,0.95688539]
[1750421835714,0.43343659,105990.0,105980.0,0.95688539]
[1750421836416,0.1886775,105990.0,105980.0,0.95688539]
[1750421836616,0.43343659,105990.0,105980.0,0.95688539]
[1750421836814,0.43343659,105990.0,105980.0,1.20164448]
[1750421837015,0.43343659,105990.0,105980.0,1.55164448]
[1750421837515,0.1886775,105990.0,105980.0,1.55164448]
[1750421839118,0.50889377,105990.0,105980.0,1.55164448]
[1750421839418,0.43343659,105990.0,105980.0,1.55164448]
[1750421839612,0.43343659,105990.0,105980.0,1.20164448]
[1750421839819,0.43343659,105990.0,105980.0,1.54164448]
[1750421840613,0.43343659,105990.0,105980.0,1.29688539]
[1750421841518,0.43343659,105990.0,105980.0,1.54164448]
[1750421842019,0.43343659,105990.0,105980.0,0.7121263]
[1750421842220,0.43343659,105990.0,105980.0,0.95688539]
[1750421844418,0.50889377,105990.0,105980.0,0.95688539]
[1750421844724,0.49000821,105990.0,105980.0,0.95688539]
[1750421845219,0.49000821,105990.0,105980.0,1.55164448]
[1750421846020,0.49000821,105990.0,105980.0,1.32688539]
[1750421848121,0.51233699,105990.0,105980.0,1.32688539]
[1750421848323,0.45576537,105990.0,105980.0,1.32688539]
[1750421849511,0.45576537,105990.0,105980.0,1.57164448]
[1750421850621,0.21100628,105990.0,105980.0,1.57164448]
[1750421850826,0.26761729,105990.0,105980.0,1.57164448]
[1750421851121,0.26801729,105990.0,105980.0,1.57164448]
[1750421852719,0.07933979,105990.0,105980.0,1.93244448]
[1750421853122,0.07893979,105990.0,105980.0,1.93244448]
[1750421853314,0.07933979,105990.0,105980.0,1.93244448]
[1750421853518,0.02272878,105990.0,105980.0,1.93244448]
[1750421855626,0.05661101,106010.0,105990.0,0.0471654]
[1750421855827,0.07187218,106020.0,106010.0,0.188642]
[1750421856022,0.07149698,106020.0,106010.0,1.37629578]
[1750421856321,0.05661101,106020.0,106010.0,1.42176018]
[1750421856531,0.05821101,106020.0,106010.0,1.42176018]
[1750421856721,0.40195199,106030.0,106020.0,0.1886242]
[1750421857027,0.40275199,106030.0,106020.0,1.18629911]
[1750421857227,0.40195199,106030.0,106020.0,1.17695059]
[1750421857427,0.40235199,106030.0,106020.0,1.17695059]
[1750421857926,0.40435199,106030.0,106020.0,1.17695059]
[1750421859625,0.34774098,106030.0,106020.0,1.17695059]
[1750421859827,0.34816556,106030.0,106020.0,1.17695059]
[1750421860029,0.3324776,106030.0,106020.0,0.85695059]
[1750421860228,0.40475952,106030.0,106020.0,0.85695059]
[1750421860530,0.40275952,106030.0,106020.0,0.85695059]
[1750421860734,0.46905952,106030.0,106020.0,0.85695059]
[1750421861029,0.46905952,106030.0,106020.0,0.6122242]
[1750421861629,0.41244851,106030.0,106020.0,0.6122242]
[1750421862225,0.40844851,106030.0,106020.0,0.6122242]
[1750421862423,0.46505952,106030.0,106020.0,0.6122242]
[1750421862623,0.70978591,106030.0,106020.0,0.1886242]
[1750421863229,0.1886242,106020.0,106010.0,0.99862759]
[1750421863434,0.2531242,106020.0,106010.0,0.7539012]
[1750421864225,0.2531242,106020.0,106010.0,0.99862759]
[1750421866932,0.1886242,106020.0,106010.0,1.04578729]
[1750421867133,0.1886242,106020.0,106010.0,1.42578729]
[1750421867620,0.21087797,106020.0,106010.0,1.42578729]
[1750421868536,0.21087796,106020.0,106010.0,1.42578729]
[1750421875739,0.21087796,106020.0,106010.0,1.06498729]
[1750421875937,0.21087796,106020.0,106010.0,1.42578729]
[1750421878531,0.21087796,106020.0,106010.0,1.40578729]
[1750421879641,0.21087796,106020.0,106010.0,1.04578729]
[1750421879842,0.21087796,106020.0,106010.0,1.39578729]
[1750421880044,0.21087796,106020.0,106010.0,1.04578729]
[1750421881743,0.26748897,106020.0,106010.0,1.04578729]
[1750421881929,0.33128897,106020.0,106010.0,1.04578729]
[1750421882238,0.33128897,106020.0,106010.0,0.99862759]
[1750421882648,0.33128897,106020.0,106010.0,0.96582759]
[1750421883131,0.33128897,106020.0,106010.0,0.7211012]
[1750421883734,0.33128897,106020.0,106010.0,0.7524012]
[1750421884245,0.33128897,106020.0,106010.0,1.32712759]
[1750421884443,0.29888897,106020.0,106010.0,1.32712759]
[1750421884643,0.26748897,106020.0,106010.0,1.32712759]
[1750421884949,0.07879729,106020.0,106010.0,1.32712759]
[1750421885131,0.26742149,106020.0,106010.0,1.32712759]
[1750421885642,0.02225376,106020.0,106010.0,1.32712759]
[1750421886141,0.21127796,106020.0,106010.0,1.32712759]
[1750421886746,0.28673514,106020.0,106010.0,1.32712759]
[1750421887647,0.21127796,106020.0,106010.0,1.32712759]
[1750421888244,0.28673514,106020.0,106010.0,1.32712759]
[1750421888846,0.21127796,106020.0,106010.0,1.32712759]
[1750421889146,0.21127796,106020.0,106010.0,1.31712759]
[1750421889548,0.09811094,106020.0,106010.0,1.31712759]
[1750421889752,0.21127796,106020.0,106010.0,1.31712759]
[1750421890047,0.21087796,106020.0,106010.0,1.31712759]
[1750421890546,0.21127796,106020.0,106010.0,1.31712759]
[1750421892247,0.21127796,106020.0,106010.0,1.33402744]
[1750421892441,0.21127796,106020.0,106010.0,1.33421081]
[1750421894749,0.26787869,106020.0,106010.0,1.33421081]
[1750421895745,0.26787869,106020.0,106010.0,1.31712759]
[1750421896050,0.26787869,106020.0,106010.0,1.33390712]
[1750421897256,0.26787869,106020.0,106010.0,1.01390712]
[1750421897941,0.26787869,106020.0,106010.0,0.76918073]
[1750421899154,0.26787869,106020.0,106010.0,1.01390712]
[1750421901656,0.26787869,106020.0,106010.0,0.76918073]
[1750421901856,0.51260508,106020.0,106010.0,0.73788073]
[1750421902057,0.51850435,106020.0,106010.0,0.73788073]
[1750421902757,0.59396153,106020.0,106010.0,0.72867945]
[1750421903558,0.35023514,106020.0,106010.0,0.72867945]
[1750421903858,0.27477796,106020.0,106010.0,1.00600584]
[1750421905056,0.27677796,106020.0,106010.0,1.00600584]
[1750421905460,0.27677796,106020.0,106010.0,1.35600584]
[1750421905758,0.29997016,106020.0,106010.0,1.35600584]
[1750421907054,0.29897016,106020.0,106010.0,1.35600584]
[1750421910861,0.29897016,106020.0,106010.0,1.00600584]
[1750421911064,0.32997016,106020.0,106010.0,0.98922631]
[1750421911662,0.34883514,106020.0,106010.0,0.98922631]
[1750421913764,0.27337796,106020.0,106010.0,0.98922631]
[1750421915473,0.27337796,106020.0,106010.0,0.95662631]
[1750421915669,0.27337796,106020.0,106010.0,0.71189992]
[1750421917070,0.27337796,106020.0,106010.0,0.35109992]
[1750421917273,0.27337796,106020.0,106010.0,0.71189992]
[1750421920774,0.27337796,106020.0,106010.0,0.74269992]
[1750421921876,0.24237796,106020.0,106010.0,0.98742631]
[1750421923472,0.24237796,106020.0,106010.0,0.74269992]
[1750421923674,0.24237796,106020.0,106010.0,0.98742631]
[1750421924775,0.56262651,106020.0,106010.0,0.98749129]
[1750421925676,0.53152651,106020.0,106010.0,0.98749129]
[1750421927474,0.53152651,106020.0,106010.0,0.62669129]
[1750421927774,0.53152651,106020.0,106010.0,0.98749129]
[1750421929368,0.53152651,106020.0,106010.0,1.31749129]
[1750421932276,0.28673514,106020.0,106010.0,1.31749129]
[1750421934878,0.21127796,106020.0,106010.0,1.31749129]
[1750421940683,0.02265376,106020.0,106010.0,1.31749129]
[1750421940986,0.0792629,106020.0,106010.0,1.56228266]
[1750421941188,0.0788629,106020.0,106010.0,1.32166536]
[1750421941490,0.0792629,106020.0,106010.0,1.32166536]
[1750421941991,0.0792629,106020.0,106010.0,1.32566536]
[1750421943198,0.0792629,106020.0,106010.0,1.32149129]
[1750421944200,0.0792629,106020.0,106010.0,1.32566536]
[1750421944503,0.0792629,106020.0,106010.0,1.57045673]
[1750421947006,0.0792629,106020.0,106010.0,1.32566536]
[1750421947200,0.0792629,106020.0,106010.0,1.36566536]
[1750421948597,0.0792629,106020.0,106010.0,1.72646536]
[1750421949102,0.05700914,106020.0,106010.0,1.72646536]
[1750421949300,0.07934575,106020.0,106010.0,1.72646536]
[1750421951502,0.07934575,106020.0,106010.0,1.72229129]
[1750421958403,0.07934575,106020.0,106010.0,1.72646536]
[1750421959509,0.07934575,106020.0,106010.0,1.72229129]
[1750421963914,0.07934575,106020.0,106010.0,1.73918327]
[1750421965715,0.07934575,106020.0,106010.0,1.98397464]
[1750421966616,0.07934575,106020.0,106010.0,1.98814871]
[1750421969015,0.07934575,106020.0,106010.0,1.74335734]
[1750421970619,0.07934575,106020.0,106010.0,1.73918327]
[1750421971616,0.07894575,106020.0,106010.0,1.98397464]
[1750421971918,0.07934575,106020.0,106010.0,1.98814871]
[1750421975113,0.02273661,106020.0,106010.0,1.98814871]
[1750421976219,0.02233661,106020.0,106010.0,1.98814871]
[1750421976418,0.07934519,106020.0,106010.0,1.98814871]
[1750421978426,0.02273661,106020.0,106010.0,1.98814871]
[1750421982531,0.07934369,106020.0,106010.0,1.98814871]
[1750421986227,0.02768029,106020.0,106010.0,2.23294008]
[1750421986428,0.01620506,106030.0,106020.0,0.1886242]
[1750421986634,0.01540506,106030.0,106020.0,1.72839831]
[1750421986832,0.01580506,106030.0,106020.0,1.48360694]
[1750421987324,0.01580506,106030.0,106020.0,1.72839831]
[1750421987732,0.01580506,106030.0,106020.0,1.48360694]
[1750421990634,0.01580506,106030.0,106020.0,1.48760694]
[1750421991128,0.01580506,106030.0,106020.0,1.49178101]
[1750421991330,0.01580506,106030.0,106020.0,1.73957238]
[1750421991530,0.01540506,106030.0,106020.0,1.73957238]
[1750421992034,0.01580506,106030.0,106020.0,1.73957238]
[1750422000043,0.01580506,106030.0,106020.0,1.73539831]
[1750422002049,0.20441146,106030.0,106020.0,1.04600694]
[1750422002351,0.51190283,106030.0,106020.0,0.80121557]
[1750422002547,0.51190283,106030.0,106020.0,0.5564242]
[1750422002735,0.51190283,106030.0,106020.0,0.80121557]
[1750422003052,0.53417821,106030.0,106020.0,0.80121557]
[1750422003539,0.53417821,106030.0,106020.0,0.79821557]
[1750422003748,0.28938684,106030.0,106020.0,1.03900694]
[1750422004141,0.53417821,106030.0,106020.0,0.79421557]
[1750422004950,0.53417821,106030.0,106020.0,1.13421557]
[1750422005246,0.53417821,106030.0,106020.0,1.03900694]
[1750422006247,0.59063463,106030.0,106020.0,1.03900694]
[1750422006949,0.34584326,106030.0,106020.0,1.03900694]
[1750422008449,0.59063463,106030.0,106020.0,1.03900694]
[1750422008943,0.59063463,106030.0,106020.0,0.79421557]
[1750422013945,0.59063463,106030.0,106020.0,0.43341557]
[1750422014850,0.78885367,106030.0,106020.0,0.1886242]
[1750422015056,0.59063463,106030.0,106020.0,0.43341557]
[1750422015258,0.53417821,106030.0,106020.0,0.43341557]
[1750422016054,0.28938684,106030.0,106020.0,0.43341557]
[1750422016246,0.53417821,106030.0,106020.0,0.43341557]
[1750422017350,0.59063362,106030.0,106020.0,0.43341557]
[1750422018160,0.59099977,106030.0,106020.0,0.43341557]
[1750422019058,0.60061802,106030.0,106020.0,0.43341557]
[1750422019255,0.59099977,106030.0,106020.0,0.43341557]
[1750422021465,0.59099977,106030.0,106020.0,0.1886242]
[1750422021769,0.59099977,106030.0,106020.0,0.43341557]
[1750422023162,0.60046272,106030.0,106020.0,0.43341557]
[1750422025165,0.61946449,106030.0,106020.0,0.43341557]
[1750422025958,0.37467312,106030.0,106020.0,0.43341557]
[1750422026155,0.61946449,106030.0,106020.0,0.43341557]
[1750422029372,0.98026449,106030.0,106020.0,0.43341557]
[1750422030171,0.97080154,106030.0,106020.0,0.43341557]
[1750422030867,0.36521017,106030.0,106020.0,0.43341557]
[1750422031066,0.61000154,106030.0,106020.0,0.42421451]
[1750422032175,0.53454436,106030.0,106020.0,0.42421451]
[1750422033068,0.89534436,106030.0,106020.0,0.45551451]
[1750422033274,0.87306898,106030.0,106020.0,0.45551451]
[1750422033475,0.89532008,106030.0,106020.0,0.45551451]
[1750422033666,0.53452008,106030.0,106020.0,0.45551451]
[1750422034068,0.53452008,106030.0,106020.0,0.48551451]
[1750422035176,0.60994381,106030.0,106020.0,0.48551451]
[1750422041183,0.60994381,106030.0,106020.0,0.47631348]
[1750422048787,0.30245244,106030.0,106020.0,0.47631348]
[1750422048992,0.54724381,106030.0,106020.0,0.47631348]
[1750422051393,0.54724381,106030.0,106020.0,0.72110485]
[1750422051693,0.54724381,106030.0,106020.0,0.47631348]
[1750422055102,0.54724381,106030.0,106020.0,0.48048755]
[1750422055901,0.54724381,106030.0,106020.0,0.84128755]
[1750422056091,0.54724381,106030.0,106020.0,1.08607892]
[1750422056703,0.54724381,106030.0,106020.0,0.84128755]
[1750422058304,0.30245244,106030.0,106020.0,0.84128755]
[1750422058602,0.54724381,106030.0,106020.0,0.84128755]
[1750422060005,0.54724381,106030.0,106020.0,0.83711348]
[1750422060904,0.30245244,106030.0,106020.0,0.83711348]
[1750422061106,0.54724381,106030.0,106020.0,1.08607892]
[1750422062005,0.54724381,106030.0,106020.0,1.076878]
[1750422062704,0.54724381,106030.0,106020.0,0.83208663]
[1750422064506,0.54724381,106030.0,106020.0,1.076878]
[1750422065102,0.47182008,106030.0,106020.0,1.076878]
[1750422065302,0.32138608,106030.0,106020.0,1.076878]
[1750422065498,0.11390928,106030.0,106020.0,1.446878]
[1750422065705,0.11350928,106030.0,106020.0,1.446878]
[1750422065899,0.11390928,106030.0,106020.0,1.446878]
[1750422066095,0.11350928,106030.0,106020.0,1.446878]
[1750422066395,0.03842231,106030.0,106020.0,1.446878]
[1750422066596,0.11390928,106030.0,106020.0,1.69166937]
[1750422066908,0.09500064,106030.0,106020.0,1.88030137]
[1750422067207,0.09460064,106030.0,106020.0,1.88230137]
[1750422067406,0.09500064,106030.0,106020.0,1.88230137]
[1750422067611,0.09500064,106030.0,106020.0,1.63951]
[1750422067809,0.09500064,106030.0,106020.0,1.88630137]
[1750422068012,0.09500064,106030.0,106020.0,1.69766937]
[1750422068310,0.09500064,106030.0,106020.0,1.452878]
[1750422068909,0.09500064,106030.0,106020.0,1.453878]
[1750422070813,0.03842231,106030.0,106020.0,1.453878]
[1750422073220,0.03842231,106030.0,106020.0,1.44970393]
[1750422076517,0.03842231,106030.0,106020.0,1.453878]
[1750422078319,0.03842231,106030.0,106020.0,1.44970393]
[1750422078909,0.22702871,106030.0,106020.0,0.59012119]
[1750422079113,0.52839841,106030.0,106020.0,0.19832119]
[1750422079311,0.59677248,106030.0,106020.0,0.004]
[1750422079517,0.97648112,106030.0,106020.0,0.1926242]
[1750422079721,0.97648112,106030.0,106020.0,0.43741557]
[1750422079913,0.61568112,106030.0,106020.0,0.43741557]
[1750422080112,0.61568112,106030.0,106020.0,0.79821557]
[1750422080313,0.53602008,106030.0,106020.0,0.79821557]
[1750422080920,0.53602008,106030.0,106020.0,0.79621557]
[1750422081718,0.61150705,106030.0,106020.0,0.43341557]
[1750422081918,0.61150705,106030.0,106020.0,0.43541557]
[1750422082619,0.61150705,106030.0,106020.0,0.43341557]
[1750422083421,0.61150705,106030.0,106020.0,0.43758964]
[1750422084522,0.61150705,106030.0,106020.0,0.43341557]
[1750422085122,0.53602008,106030.0,106020.0,0.1886242]
[1750422085422,0.53602008,106030.0,106020.0,0.43758964]
[1750422086322,0.89682008,106030.0,106020.0,0.43758964]
[1750422086519,0.89682008,106030.0,106020.0,0.43341557]
[1750422087321,0.53602008,106030.0,106020.0,0.43341557]
[1750422089825,0.72463908,106030.0,106020.0,0.1886242]
[1750422093129,0.72463908,106030.0,106020.0,0.43341557]
[1750422095118,0.80012605,106030.0,106020.0,0.43341557]
[1750422097128,0.72463908,106030.0,106020.0,0.43341557]
[1750422102328,1.08543908,106030.0,106020.0,0.43341557]
[1750422103325,1.16092605,106030.0,106020.0,0.43341557]
[1750422108022,1.16092605,106030.0,106020.0,0.46541557]
[1750422108728,0.80012605,106030.0,106020.0,0.46541557]
[1750422108921,0.80012605,106030.0,106020.0,0.49841557]
[1750422112227,1.16092605,106030.0,106020.0,0.49841557]
[1750422112931,1.16092605,106030.0,106020.0,0.2536242]
[1750422113136,0.80012605,106030.0,106020.0,0.49841557]
[1750422114140,1.16092605,106030.0,106020.0,0.49841557]
[1750422115139,1.08543908,106030.0,106020.0,0.49841557]
[1750422115736,1.08543908,106030.0,106020.0,0.2536242]
[1750422117636,0.72463908,106030.0,106020.0,0.2536242]
[1750422117838,1.08543908,106030.0,106020.0,0.2536242]
[1750422119330,0.84064771,106030.0,106020.0,0.2536242]
[1750422119529,1.08543908,106030.0,106020.0,0.2536242]
[1750422119726,1.17979645,106030.0,106020.0,0.24442303]
[1750422121638,0.81899645,106030.0,106020.0,0.24442303]
[1750422122138,0.72463908,106030.0,106020.0,0.4892144]
[1750422122438,0.80013274,106030.0,106020.0,0.4892144]
[1750422123634,0.80013274,106030.0,106020.0,0.24442303]
[1750422125236,0.72463908,106030.0,106020.0,0.24442303]
[1750422125838,0.72463908,106030.0,106020.0,0.2536242]
[1750422126535,1.40572411,106030.0,106020.0,0.033]
[1750422126743,0.188642,106010.0,106000.0,0.282977]
[1750422126939,0.22613662,106010.0,106000.0,0.2680376]
[1750422127135,0.33323847,106010.0,106000.0,0.2680376]
[1750422127540,0.36473847,106010.0,106000.0,0.2212598]
[1750422128847,0.36473847,106010.0,106000.0,0.2262598]
[1750422129143,0.36473847,106010.0,106000.0,0.2302598]
[1750422129851,0.36473847,106010.0,106000.0,0.22105703]
[1750422134046,0.36473847,106010.0,106000.0,0.4658484]
[1750422135346,0.34949495,106010.0,106000.0,0.4658484]
[1750422135544,0.34949495,106010.0,106000.0,0.22105703]
[1750422136650,0.34949495,106010.0,106000.0,0.1976598]
[1750422146042,0.34949495,106010.0,106000.0,0.2300598]
[1750422148754,0.34949495,106010.0,106000.0,0.1976598]
[1750422148952,0.71029495,106010.0,106000.0,0.009]
[1750422149560,0.34949495,106010.0,106000.0,0.1976597]
[1750422149761,0.71029495,106010.0,106000.0,0.44245107]
[1750422149954,0.71029495,106010.0,106000.0,0.47385107]
[1750422150453,0.31799495,106010.0,106000.0,0.47385107]
[1750422150650,0.31799495,106010.0,106000.0,0.50635107]
[1750422152561,0.31799495,106010.0,106000.0,0.51052514]
[1750422153464,0.31799495,106010.0,106000.0,0.50635107]
[1750422154062,0.67879495,106010.0,106000.0,0.50635107]
[1750422155357,0.6032931,106010.0,106000.0,0.50635107]
[1750422155558,0.69767041,106010.0,106000.0,0.2615597]
[1750422155862,0.69767041,106010.0,106000.0,0.50635107]
[1750422156456,0.69767041,106010.0,106000.0,0.44971609]
[1750422158371,0.69767041,106010.0,106000.0,0.20492472]
[1750422159361,0.69767041,106010.0,106000.0,0.0639]
[1750422159562,0.69767041,106010.0,106000.0,0.2525597]
[1750422163773,0.71298277,106010.0,106000.0,0.2525597]
[1750422163971,0.71298277,106010.0,106000.0,0.0639]
[1750422164172,0.71298277,106010.0,106000.0,0.0314]
[1750422164469,0.74348277,106010.0,106000.0,0.0314]
[1750422165569,0.1886597,106000.0,105990.0,0.2192775]
[1750422165774,0.28637383,106000.0,105990.0,0.2504775]
[1750422165977,0.34797383,106000.0,105990.0,0.2504775]
[1750422166273,0.42452661,106000.0,105990.0,0.2504775]
[1750422166875,0.39402661,106000.0,105990.0,0.49926887]
[1750422167267,0.40950535,106000.0,105990.0,0.50426887]
[1750422167666,0.40950535,106000.0,105990.0,0.50026887]
[1750422169463,0.40950535,106000.0,105990.0,0.49526887]
[1750422169667,0.40950535,106000.0,105990.0,0.49726887]
[1750422174279,0.40950535,106000.0,105990.0,0.48806531]
[1750422175785,0.40950535,106000.0,105990.0,0.60407394]
[1750422176080,0.37840535,106000.0,105990.0,0.60407394]
[1750422177082,0.37840535,106000.0,105990.0,0.84886531]
[1750422178986,0.37840535,106000.0,105990.0,0.60407394]
[1750422179184,0.37840535,106000.0,105990.0,0.84886531]
[1750422180890,0.62319672,106000.0,105990.0,0.84886531]
[1750422182897,0.62319672,106000.0,105990.0,0.60407394]
[1750422183098,0.62319672,106000.0,105990.0,0.84886531]
[1750422188199,0.65389672,106000.0,105990.0,0.84886531]
[1750422189610,0.65415235,106000.0,105990.0,0.84886531]
[1750422189901,0.65415235,106000.0,105990.0,0.60407394]
[1750422190103,0.65415235,106000.0,105990.0,0.84886531]
[1750422193207,0.65407576,106000.0,105990.0,0.84886531]
[1750422196810,0.63841798,106000.0,105990.0,0.84886531]
[1750422197011,0.65366911,106000.0,105990.0,0.84886531]
[1750422200214,0.63841798,106000.0,105990.0,0.84886531]
[1750422200910,0.65372569,106000.0,105990.0,0.84886531]
[1750422203217,0.65372569,106000.0,105990.0,0.48806531]
[1750422203813,0.65372569,106000.0,105990.0,0.46666887]
[1750422205918,0.89851706,106000.0,105990.0,0.46666887]
[1750422206120,0.93171706,106000.0,105990.0,0.46666887]
[1750422206306,0.93171706,106000.0,105990.0,0.43546887]
[1750422206507,0.85625403,106000.0,105990.0,0.43546887]
[1750422208522,0.93176314,106000.0,105990.0,0.43546887]
[1750422209014,0.93176314,106000.0,105990.0,0.1906775]
[1750422209322,0.93593721,106000.0,105990.0,0.1906775]
[1750422209826,0.69114584,106000.0,105990.0,0.43546887]
[1750422210322,0.68697177,106000.0,105990.0,0.43546887]
[1750422211021,0.93176314,106000.0,105990.0,0.43546887]
[1750422213122,0.4421804,106000.0,105990.0,0.43546887]
[1750422213424,0.93176314,106000.0,105990.0,0.43546887]
[1750422220626,0.4421804,106000.0,105990.0,0.43546887]
[1750422220931,0.93176314,106000.0,105990.0,0.43546887]
[1750422221832,0.85625403,106000.0,105990.0,0.43546887]
[1750422222634,0.61146266,106000.0,105990.0,0.43546887]
[1750422222836,0.68697177,106000.0,105990.0,0.43546887]
[1750422223533,0.93176314,106000.0,105990.0,0.1906775]
[1750422225048,0.93176314,106000.0,105990.0,0.002]
[1750422225243,1.29256314,106000.0,105990.0,0.002]
[1750422225550,1.29673721,106000.0,105990.0,0.1906775]
[1750422225739,1.2212281,106000.0,105990.0,0.1906775]
[1750422225940,1.2212281,106000.0,105990.0,0.002]
[1750422229050,1.2212281,106000.0,105990.0,0.1906775]
[1750422233745,1.31560541,106000.0,105990.0,0.1906775]
[1750422235454,1.31560541,106000.0,105990.0,0.002]
[1750422235756,1.31560541,106000.0,105990.0,0.1906775]
[1750422236351,1.31560541,106000.0,105990.0,0.002]
[1750422236554,1.31560541,106000.0,105990.0,0.1906775]
[1750422236848,1.31143134,106000.0,105990.0,0.002]
[1750422237051,1.31143134,106000.0,105990.0,0.1906775]
[1750422239758,1.31560541,106000.0,105990.0,0.1906775]
[1750422240849,1.31143134,106000.0,105990.0,0.1906775]
[1750422242459,1.31143134,106000.0,105990.0,0.002]
[1750422243561,0.1886774,105990.0,105980.0,0.3141248]
[1750422243758,0.9426708,105990.0,105980.0,0.2197804]
[1750422243967,0.9758708,105990.0,105980.0,0.2197953]
[1750422244260,0.97687305,105990.0,105980.0,0.46458667]
[1750422244463,0.97687305,105990.0,105980.0,0.2197953]
[1750422245059,0.97687305,105990.0,105980.0,0.2217953]
[1750422245558,0.97687305,105990.0,105980.0,0.2247953]
[1750422245758,0.98631081,105990.0,105980.0,0.2247953]
[1750422246056,0.96742647,105990.0,105980.0,0.2247953]
[1750422246256,0.93422647,105990.0,105980.0,0.2247953]
[1750422246454,0.96662647,105990.0,105980.0,0.2247953]
[1750422247859,0.96662647,105990.0,105980.0,0.0361]
[1750422248061,0.96662647,105990.0,105980.0,0.02689519]
[1750422248463,0.95718871,105990.0,105980.0,0.21559049]
[1750422250063,0.96664155,105990.0,105980.0,0.21559049]
[1750422250258,0.96664155,105990.0,105980.0,0.1936953]
[1750422251467,0.96664155,105990.0,105980.0,0.005]
[1750422252564,0.96664155,105990.0,105980.0,0.1936953]
[1750422252765,0.89117496,105990.0,105980.0,0.005]
[1750422252960,0.96661883,105990.0,105980.0,0.005]
[1750422253365,0.72182746,105990.0,105980.0,0.005]
[1750422253560,0.96661883,105990.0,105980.0,0.005]
[1750422254365,0.98203203,105990.0,105980.0,0.005]
[1750422257361,0.98203203,105990.0,105980.0,0.1936953]
[1750422257764,0.98197963,105990.0,105980.0,0.1936953]
[1750422258070,0.97252679,105990.0,105980.0,0.43848667]
[1750422258364,0.97280197,105990.0,105980.0,0.43848667]
[1750422258564,0.97280197,105990.0,105980.0,0.46988667]
[1750422259868,0.1143332,105990.0,105980.0,1.40547804]
[1750422260075,0.3034107,105990.0,105980.0,1.44175211]
[1750422260263,0.22796683,105990.0,105980.0,1.44175211]
[1750422260462,0.28452411,105990.0,105980.0,1.44175211]
[1750422260659,0.28412411,105990.0,105980.0,1.44175211]
[1750422260862,0.28452411,105990.0,105980.0,1.44175211]
[1750422261268,0.09584661,105990.0,105980.0,1.44175211]
[1750422261464,0.28452411,105990.0,105980.0,1.44175211]
[1750422261659,0.26888813,105990.0,105980.0,1.44175211]
[1750422271479,0.08021063,105990.0,105980.0,1.44175211]
[1750422271673,0.02325335,105990.0,105980.0,1.44175211]
[1750422271875,0.02365335,105990.0,105980.0,1.44175211]
[1750422279677,0.02365335,105990.0,105980.0,1.80255211]
[1750422285186,0.21233085,105990.0,105980.0,1.80255211]
[1750422287186,0.26888813,105990.0,105980.0,1.80255211]
[1750422288391,0.29928813,105990.0,105980.0,1.80255211]
[1750422290093,0.11061063,105990.0,105980.0,1.80255211]
[1750422290792,0.29928803,105990.0,105980.0,1.80255211]
[1750422295797,0.24273075,105990.0,105980.0,1.80255211]
[1750422299393,0.29928803,105990.0,105980.0,1.80255211]
[1750422301198,0.29928803,105990.0,105980.0,1.85255211]
[1750422301399,0.33168803,105990.0,105980.0,1.40905211]
[1750422301598,0.5764794,105990.0,105980.0,1.72905211]
[1750422301804,0.33168803,105990.0,105980.0,1.73905211]
[1750422301995,0.5764794,105990.0,105980.0,0.91946937]
[1750422302196,0.59536599,105990.0,105980.0,1.16426074]
[1750422302400,0.57653204,105990.0,105980.0,1.16426074]
[1750422302597,0.51992212,105990.0,105980.0,1.16426074]
[1750422302796,0.59536599,105990.0,105980.0,1.16426074]
[1750422302996,0.59536599,105990.0,105980.0,1.40905211]
[1750422303201,0.35057462,105990.0,105980.0,1.74905211]
[1750422303397,0.27513075,105990.0,105980.0,1.74905211]
[1750422303604,0.33173074,105990.0,105980.0,1.74905211]
[1750422310008,0.30847739,105990.0,105980.0,1.74905211]
[1750422310207,0.33171667,105990.0,105980.0,1.74905211]
[1750422314407,0.08023927,105990.0,105980.0,1.99384348]
[1750422314601,0.07983927,105990.0,105980.0,2.05854348]
[1750422314806,0.02363928,105990.0,105980.0,2.05854348]
[1750422315708,0.02363928,105990.0,105980.0,1.81375211]
[1750422316010,0.05699999,105990.0,105980.0,1.81375211]
[1750422316213,0.08023927,105990.0,105980.0,2.05854348]
[1750422316508,0.02363928,105990.0,105980.0,2.05854348]
[1750422316715,0.07216032,106000.0,105990.0,0.1886775]
[1750422316915,0.07296032,106000.0,105990.0,1.45356024]
[1750422317208,0.01556033,106000.0,105990.0,1.45356024]
[1750422317511,0.01596033,106000.0,105990.0,1.45356024]
[1750422317908,0.01596033,106000.0,105990.0,1.45456024]
[1750422320913,0.01596033,106000.0,105990.0,1.45873431]
[1750422321817,0.20462003,106000.0,105990.0,1.45873431]
[1750422322019,0.01596033,106000.0,105990.0,1.45873431]
[1750422327920,0.04803928,106010.0,106000.0,0.1886596]
[1750422328109,0.04723928,106010.0,106000.0,1.71621169]
[1750422328310,0.04763928,106010.0,106000.0,1.71621169]
[1750422328515,0.0004,106010.0,106000.0,1.71621169]
[1750422328721,0.02346005,106010.0,106000.0,1.71621169]
[1750422329515,0.02546005,106010.0,106000.0,1.71621169]
[1750422330222,0.02346005,106010.0,106000.0,1.71621169]
[1750422330912,0.02346005,106010.0,106000.0,1.22655797]
[1750422331616,0.02346005,106010.0,106000.0,1.22755797]
[1750422335224,0.02346005,106010.0,106000.0,1.23173204]
[1750422338314,0.02346005,106010.0,106000.0,1.59253204]